Cogmind - Beta 10.2 --- EXPLORER MODE // 2022.03.04 @ 17:39:32 // AFD2020/Player2 Player: Quiddy Result: Core destroyed Performance ------------- Evolutions (3) 1500 Regions Visited (9) 1800 Robots Destroyed (46) 230 Value Destroyed (1423) 1423 Prototype IDs (6) 120 Alien Tech Used (0) 0 Bonus (1110) 1110 TOTAL SCORE: 6183 Bonus ------- High Alert Combat Kills 38 Follower Combat Kills 1066 Aligned with FarCom 300 Met Imprinter 300 Friendly Fire -594 Cogmind --------- Core Integrity 0/700 Matter 5/300 Energy 160/160 System Corruption 1% Temperature Cool (0) Movement Treading (150) Location -6/Zion Parts ------- > --- POWER (1) -------- Light Nuclear Core > --- PROPULSION (3) --- Light Treads Advanced Treads Advanced Treads > --- UTILITY (5) ------ Large Storage Unit Targeting Computer Hardened Medium Armor Plating Hardened Heavy Armor Plating > --- WEAPON (5) ------- Small Laser Small Laser Light Assault Rifle Precision Rocket Launcher > --- INVENTORY (10) --- Ion Engine Light Ion Engine Light Treads Aluminum Leg Aluminum Leg Structural Scanner Plasma Rifle Peak State ------------ > --- POWER ------------ Light Nuclear Core > --- PROPULSION ------- Light Treads Advanced Treads Advanced Treads > --- UTILITY ---------- Large Storage Unit Targeting Computer Hardened Medium Armor Plating Hardened Heavy Armor Plating > --- WEAPON ----------- Medium Laser Heavy Particle Cannon Light Assault Rifle Flak Cannon Precision Rocket Launcher > --- INVENTORY -------- Ion Engine Light Ion Engine Light Treads Aluminum Leg Aluminum Leg Structural Scanner Small Laser Small Laser Plasma Rifle [Rating: 38] Favorites ----------- Power Ion Engine Engine Ion Engine Power Core Light Nuclear Core Propulsion Light Treads Treads Light Treads Leg Aluminum Leg Utility Large Storage Unit Storage Large Storage Unit Processor Targeting Computer Protection Weapon Shielding Weapon Light Assault Rifle Energy Gun Heavy EM Pulse Gun Energy Cannon Heavy Particle Cannon Ballistic Gun Light Assault Rifle Ballistic Cannon Flak Cannon Launcher Precision Rocket Launcher Build | -11 -10 -10 -10 -9 -8 -8 -7 -7 -6 ------- Run | Scr Mat Min Exi Min Mat Sto Fac Low Zio Slots Evolved 7 | . 1 . . . 4 . 2 . . Power . | . . . . . . . . . . Propulsion 1 | . . . . . 1 . . . . Utility 3 | . . . . . 2 . 1 . . Weapon 3 | . 1 . . . 1 . 1 . . Parts Attached 25 | . 2 . . . 6 6 8 1 2 Power 2 | . . . . . . 1 1 . . Engine 1 | . . . . . . 1 . . . Core 1 | . . . . . . . 1 . . Reactor . | . . . . . . . . . . Propulsion 6 | . . . . . 3 . 3 . . Treads 6 | . . . . . 3 . 3 . . Leg . | . . . . . . . . . . Wheel . | . . . . . . . . . . Hover . | . . . . . . . . . . Flight . | . . . . . . . . . . Utility 8 | . 1 . . . 2 1 3 1 . Device . | . . . . . . . . . . Storage 1 | . 1 . . . . . . . . Processor 2 | . . . . . 1 . 1 . . Hackware . | . . . . . . . . . . Protection 5 | . . . . . 1 1 2 1 . Artifact . | . . . . . . . . . . Weapon 9 | . 1 . . . 1 4 1 . 2 Energy Gun 5 | . 1 . . . 1 . 1 . 2 Energy Cannon 1 | . . . . . . 1 . . . Ballistic Gun 1 | . . . . . . 1 . . . Ballistic Cannon 1 | . . . . . . 1 . . . Launcher 1 | . . . . . . 1 . . . Special Weapon . | . . . . . . . . . . Impact Weapon . | . . . . . . . . . . Slashing Weapon . | . . . . . . . . . . Piercing Weapon . | . . . . . . . . . . Special Melee Weapon . | . . . . . . . . . . Unidentified Prototypes 1 | . . . . . . 1 . . . Parts Lost 3 | . . . . . . . 1 . 2 Power . | . . . . . . . . . . Propulsion . | . . . . . . . . . . Utility 1 | . . . . . . . 1 . . Weapon 2 | . . . . . . . . . 2 Highest Loss Streak 2 | . . . . . . . 1 . 2 Average Slot Usage (%) 96 | . 99 100 100 100 90 99 95 90 91 Engine 5 | . 12 12 12 12 8 7 3 . . Core 2 | . . . . . . . 3 7 7 Treads 16 | . . . . . 16 25 20 21 21 Leg 6 | . 25 25 25 25 . . . . . Storage 8 | . 12 12 12 12 8 8 7 7 7 Processor 5 | . . . . . 8 8 10 7 7 Protection 13 | . 12 12 12 12 16 16 14 12 14 Energy Gun 13 | . 24 25 25 25 23 11 6 7 7 Energy Cannon 3 | . . . . . . 3 7 7 6 Ballistic Gun 8 | . 12 12 12 12 8 8 7 7 7 Ballistic Cannon 3 | . . . . . . 1 7 7 6 Launcher 4 | . . . . . . 7 7 7 7 Naked Turns . | . . . . . . . . . . Heaviest Build 72 | 16 27 27 27 27 33 51 65 72 72 Greatest Support 64 | 20 20 20 20 20 60 60 64 64 64 Greatest Overweight (x) 2 | . 1 1 1 1 1 . 2 1 1 Average Overweight (x) . | . . 1 1 1 . . . . . Largest Inventory Capacity 10 | . 10 10 10 10 10 10 10 10 10 Average Capacity 9 | . 8 10 10 10 10 10 10 10 10 Most Carried 10 | . 8 8 8 8 8 9 10 10 9 Average Carried 8 | . 7 8 8 8 6 7 8 9 8 Final Capacity 10 | 8 10 10 10 10 10 10 10 10 10 Final Carried 10 | 7 8 8 8 8 7 8 10 9 7 Class Distribution -------------------- 91% | Hacker-Tank 6% | Hacker-Skirmisher Dominant Class ---------------- Hacker-Tank | -10/Materials Hacker-Tank | -10/Mines Hacker-Tank | -10/Exiles Hacker-Skirmisher | -9/Mines Hacker-Tank | -8/Materials Hacker-Tank | -8/Storage Hacker-Skirmisher | -7/Factory Hacker-Tank | -7/Lower Caves Hacker-Tank | -6/Zion Resources | -11 -10 -10 -10 -9 -8 -8 -7 -7 -6 ----------- Run | Scr Mat Min Exi Min Mat Sto Fac Low Zio Matter Collected 725 | 200 . 40 . . 60 234 16 . 175 Remotely . | . . . . . . . . . . Salvage Created 1385 | . 275 139 . . 190 533 161 . 87 Parts 93 | . 18 4 . . 12 45 7 . 7 Haulers Intercepted 3 | . . . . . . 3 . . . Recyclers Shooed . | . . . . . . . . . . Parts Field Recycled . | . . . . . . . . . . Retrieved Matter . | . . . . . . . . . . Parts Self-Destructed . | . . . . . . . . . . Prevented . | . . . . . . . . . . Kills | -11 -10 -10 -10 -9 -8 -8 -7 -7 -6 ------- Run | Scr Mat Min Exi Min Mat Sto Fac Low Zio Combat Hostiles Destroyed 24 | . 6 1 . . 4 8 3 . 2 Guns 16 | . 6 1 . . 4 3 . . 2 Cannons 3 | . . . . . . 2 1 . . AOE 5 | . . . . . . 3 2 . . Classes Destroyed 12 | . 2 1 . . 2 4 . . 3 Worker 4 | . . . . . . 4 . . . Builder 3 | . . . . . . 2 1 . . Hauler 3 | . . . . . . 3 . . . Recycler 2 | . . 1 . . . 1 . . . Operator 2 | . . . . . . 1 1 . . Watcher 5 | . 1 . . . 2 2 . . . Swarmer 6 | . . . . . 3 3 . . . Grunt 12 | . 6 1 . . . 3 2 . . Sentry 4 | . . . . . 1 2 1 . . Zionite 3 | . . . . . . . . . 3 Martyr 1 | . . . . . . . . . 1 Mutant 1 | . . . . . . . . . 1 Best Kill Streak 6 | . 2 1 . . 4 6 2 . 2 Combat Bots Only 3 | . 2 1 . . 2 3 1 . 1 Max Kills in Single Turn 4 | . 1 1 . . 1 4 2 . 2 Gunslinging . | . . . . . . . . . . Exploded 2 | . . . . . . 2 1 . . Melee . | . . . . . . . . . . Uniques/NPCs Destroyed . | . . . . . . . . . . Combat | -11 -10 -10 -10 -9 -8 -8 -7 -7 -6 -------- Run | Scr Mat Min Exi Min Mat Sto Fac Low Zio Damage Taken 1385 | . 64 28 . . 180 268 195 . 650 Core 119 | . . 11 . . 17 47 7 . 37 Absorbed by Shields . | . . . . . . . . . . Core Remaining (%) 89 | 100 . . . 90 . 78 . . . Volleys Fired 63 | . 14 6 . . 14 15 6 . 8 Largest 5 | . 3 3 . . 4 4 5 . 5 Hottest 232 | . 105 105 . . 150 183 232 . 232 Shots Fired 237 | . 41 18 . . 55 60 28 . 35 Gun 178 | . 41 18 . . 55 34 11 . 19 Cannon 31 | . . . . . . 11 11 . 9 Launcher 28 | . . . . . . 15 6 . 7 Special . | . . . . . . . . . . Kinetic 80 | . 14 6 . . 14 19 11 . 16 Thermal 62 | . 13 6 . . 13 7 11 . 12 Explosive 28 | . . . . . . 15 6 . 7 Electromagnetic 67 | . 14 6 . . 28 19 . . . Robot Hit Streak 27 | . 10 10 . . 19 15 27 . 15 Robot Miss Streak 2 | . 1 1 . . 1 1 1 . 2 Penetration Max . | . . . . . . . . . . Secondary Targets 3 | . 2 . . . 1 . . . . Max Gunslinging Chain 1 | . 1 . . . 1 . . . . Shots Hit Robots 153 | . 32 14 . . 41 23 22 . 21 Core Hits 79 | . 12 3 . . 10 27 12 . 15 Critical Hits . | . . . . . . . . . . Critical Kills . | . . . . . . . . . . Critical Parts Destroyed . | . . . . . . . . . . Melee Attacks . | . . . . . . . . . . Impact . | . . . . . . . . . . Slashing . | . . . . . . . . . . Piercing . | . . . . . . . . . . Sneak Attacks . | . . . . . . . . . . Combat Hostiles . | . . . . . . . . . . Follow-up Attacks . | . . . . . . . . . . Damage Inflicted 4151 | . 392 190 . . 454 1738 791 . 586 Guns 1477 | . 392 134 . . 454 302 72 . 123 Cannons 456 | . . . . . . 100 246 . 110 Explosions 2218 | . . 56 . . . 1336 473 . 353 Melee . | . . . . . . . . . . Ramming . | . . . . . . . . . . Kinetic 473 | . 81 19 . . 58 40 155 . 120 Thermal 697 | . 96 89 . . 67 100 232 . 113 Explosive 2093 | . . . . . . 1336 404 . 353 Electromagnetic 888 | . 215 82 . . 329 262 . . . Impact . | . . . . . . . . . . Slashing . | . . . . . . . . . . Piercing . | . . . . . . . . . . Highest Corruption 1 | . 1 1 1 1 . . 1 1 1 Average Corruption 1 | . 1 1 1 1 . . 1 1 1 Corruption Purged . | . . . . . . . . . . Effects 22 | . 1 3 6 . . . 6 5 1 Message Errors 14 | . . 1 5 . . . 3 4 1 Energy Discharges 3 | . 1 . . . . . 1 1 . Data Loss (minor) 1 | . . . 1 . . . . . . Targeting Errors 4 | . . 2 . . . . 2 . . Overload Shots . | . . . . . . . . . . Overflow Damage 206 | . . . . . . 158 42 . 6 Projectiles 18 | . . . . . . 15 . . 3 Explosions 188 | . . . . . . 143 42 . 3 Melee . | . . . . . . . . . . Knockbacks 1 | . . . . . . . 1 . . Impact . | . . . . . . . . . . Kinetic 1 | . . . . . . . 1 . . Secondary . | . . . . . . . . . . Self-Inflicted Damage 301 | . . 3 . . . 193 52 . 53 Shots 12 | . . 1 . . . 7 2 . 2 Rammed . | . . . . . . . . . . Targets Rammed . | . . . . . . . . . . Kicked . | . . . . . . . . . . Crushed . | . . . . . . . . . . Highest Temperature 466 | . 189 193 . . 243 228 466 . 300 Average Temperature 104 | . 70 95 . . 85 85 162 . 125 Received Heat Transfer 207 | . 57 24 . . 45 36 18 . 27 Effects 3 | . . . . . . . 3 . . Shutdowns 1 | . . . . . . . 1 . . Interference 2 | . . . . . . . 2 . . Siege Activations . | . . . . . . . . . . Robots Corrupted . | . . . . . . . . . . Combat Hostiles . | . . . . . . . . . . Parts Fried 2 | . . . . . 2 . . . . Impact Corruptions . | . . . . . . . . . . Robots Melted . | . . . . . . . . . . Combat Hostiles . | . . . . . . . . . . Parts Melted 3 | . . . . . . 1 1 . 1 Heat Transferred 1255 | . 225 137 . . 150 148 346 . 249 Parts Sabotaged . | . . . . . . . . . . Parts Stolen . | . . . . . . . . . . Parts Stripped . | . . . . . . . . . . Power Chain Reactions 1 | . . 1 . . . . . . . Missiles Intercepted . | . . . . . . . . . . Alert | -11 -10 -10 -10 -9 -8 -8 -7 -7 -6 ------- Run | Scr Mat Min Exi Min Mat Sto Fac Low Zio Peak Influence 806 | . 276 58 . . 279 288 806 . . Initial 84 | . . . . . . 84 . . . Average 142 | . 64 31 . . 107 79 443 . . Maximum Alert Level 3 | . 1 . . . 1 1 3 . . Low Security (%) 76 | . 86 100 . 100 70 90 20 . . Level 1 12 | . 13 . . . 29 9 22 . . Level 2 8 | . . . . . . . 43 . . Level 3 2 | . . . . . . . 12 . . Level 4 . | . . . . . . . . . . Level 5 . | . . . . . . . . . . High Security . | . . . . . . . . . . Max Security . | . . . . . . . . . . Squads Dispatched 11 | . 3 . . . . 2 6 . . Investigation 5 | . 3 . . . . 1 1 . . Extermination 1 | . . . . . . . 1 . . Reinforcement 3 | . . . . . . 1 2 . . Assault 1 | . . . . . . . 1 . . Garrison 1 | . . . . . . . 1 . . Intercept . | . . . . . . . . . . Construction Impeded 2 | . . . . . . . 2 . . Haulers Reinforced . | . . . . . . . . . . Stealth | -11 -10 -10 -10 -9 -8 -8 -7 -7 -6 --------- Run | Scr Mat Min Exi Min Mat Sto Fac Low Zio Distress Signals 1 | . . . . . . 1 . . . Communications Jammed . | . . . . . . . . . . Distress Signals . | . . . . . . . . . . Times Spotted 81 | . 11 2 . . 12 16 14 . 26 Peak Tracking Total 10 | . 3 2 . . 4 3 4 . 10 Tactical Retreats 3 | . . . . . . . 1 . 2 Traps | -11 -10 -10 -10 -9 -8 -8 -7 -7 -6 ------- Run | Scr Mat Min Exi Min Mat Sto Fac Low Zio Traps Triggered 3 | . 1 . . . . . 2 . . Indirectly . | . . . . . . . . . . Trap Hack Attempts . | . . . . . . . . . . Triggered . | . . . . . . . . . . Disarmed 6 | . 6 . . . . . . . . Reprogrammed . | . . . . . . . . . . Reused . | . . . . . . . . . . Traps Extracted . | . . . . . . . . . . Installed . | . . . . . . . . . . Triggered . | . . . . . . . . . . Machines | -11 -10 -10 -10 -9 -8 -8 -7 -7 -6 ---------- Run | Scr Mat Min Exi Min Mat Sto Fac Low Zio Machines Disabled 26 | . . . . . . 14 9 . 3 Max in Single Turn 2 | . . . . . . 2 1 . 1 Garrison Access 2 | . . . . . . 1 1 . . Machines Sabotaged . | . . . . . . . . . . Garrisons Compromised . | . . . . . . . . . . Overloaded Fab Kills . | . . . . . . . . . . Fab Network Shutdowns 1 | . . . . . . . 1 . . Hacking | -11 -10 -10 -10 -9 -8 -8 -7 -7 -6 --------- Run | Scr Mat Min Exi Min Mat Sto Fac Low Zio Machines Accessed 18 | . 6 . 4 . . 4 3 . 1 Terminals 9 | . 6 . . . . 3 . . . Fabricators 1 | . . . . . . . 1 . . Repair Stations . | . . . . . . . . . . Recycling Units 2 | . . . . . . . 2 . . Scanalyzers . | . . . . . . . . . . Garrison Access 1 | . . . . . . 1 . . . Total Hacks 100 | . 24 . 49 . . 14 10 . 3 Successful 84 | . 16 . 49 . . 9 7 . 3 Failed 16 | . 8 . . . . 5 3 . . Catastrophic 2 | . 2 . . . . . . . . Database Lockouts . | . . . . . . . . . . Manual 2 | . . . 1 . . . . . 1 Terminals 37 | . 24 . . . . 13 . . . Fabricators 2 | . . . . . . . 2 . . Repair Stations . | . . . . . . . . . . Recycling Units 8 | . . . . . . . 8 . . Scanalyzers . | . . . . . . . . . . Garrison Access 1 | . . . . . . 1 . . . Terminal Hacks 76 | . 16 . 49 . . 8 . . 3 Record 56 | . 4 . 49 . . 3 . . . Part Schematic 3 | . . . . . . . . . 3 Prototype ID Bank 2 | . 1 . . . . 1 . . . Recycling Unit Index 1 | . 1 . . . . . . . . Alert Level 3 | . 2 . . . . 1 . . . Locate Traps 1 | . . . . . . 1 . . . Disarm Traps 1 | . 1 . . . . . . . . Dispatch Records 2 | . 2 . . . . . . . . Maintenance Status 1 | . 1 . . . . . . . . Surveillance Status 1 | . 1 . . . . . . . . Reinforcement Status 1 | . 1 . . . . . . . . Hauler Manifests 2 | . 1 . . . . 1 . . . Registered Components 1 | . . . . . . 1 . . . Registered Prototypes 1 | . 1 . . . . . . . . Fabricator Hacks 2 | . . . . . . . 2 . . Network Status 1 | . . . . . . . 1 . . Build 1 | . . . . . . . 1 . . Repair Station Hacks . | . . . . . . . . . . Recycling Unit Hacks 5 | . . . . . . . 5 . . Retrieve Components 5 | . . . . . . . 5 . . Scanalyzer . | . . . . . . . . . . Garrison Access Hacks 1 | . . . . . . 1 . . . Seal Access 1 | . . . . . . 1 . . . Unauthorized Hacks . | . . . . . . . . . . Terminals . | . . . . . . . . . . Fabricators . | . . . . . . . . . . Repair Stations . | . . . . . . . . . . Recycling Units . | . . . . . . . . . . Scanalyzers . | . . . . . . . . . . Garrison Access . | . . . . . . . . . . Data Cores Recovered 1 | . . . . . . 1 . . . Used . | . . . . . . . . . . Hacking Detections 12 | . 6 . . . . 3 3 . . Full Trace Events 9 | . 6 . . . . 2 1 . . Feedback Events 2 | . 1 . . . . . 1 . . Corruption 2 | . 1 . . . . . 1 . . Feedback Blocked . | . . . . . . . . . . Robot Schematics Acquired . | . . . . . . . . . . Robots Built . | . . . . . . . . . . Matter . | . . . . . . . . . . Time . | . . . . . . . . . . Total Robot Build Rating . | . . . . . . . . . . Part Schematics Acquired 3 | . . . . . . . . . 3 Parts Built . | . . . . . . . . . . Matter 212 | . . . . . . . 212 . . Time 106 | . . . . . . . 106 . . Total Part Build Rating . | . . . . . . . . . . Parts Repaired . | . . . . . . . . . . Time . | . . . . . . . . . . Parts Recycled . | . . . . . . . . . . Recycled Matter . | . . . . . . . . . . Retrieved Matter . | . . . . . . . . . . Retrieved Components 3 | . . . . . . . 3 . . Parts Scanalyzed . | . . . . . . . . . . Part Schematics Acquired . | . . . . . . . . . . Parts Damaged . | . . . . . . . . . . Bothacking | -11 -10 -10 -10 -9 -8 -8 -7 -7 -6 ------------ Run | Scr Mat Min Exi Min Mat Sto Fac Low Zio Used RIF Installer . | . . . . . . . . . . Robots Hacked . | . . . . . . . . . . Non-combat . | . . . . . . . . . . Combat . | . . . . . . . . . . Robot Hacks Applied . | . . . . . . . . . . Relay Couplers Released 3 | . . . . . . . 3 . . Machine Destruction 3 | . . . . . . . 3 . . Robots Rewired . | . . . . . . . . . . Allies Hacked . | . . . . . . . . . . Hacks Repelled . | . . . . . . . . . . Allies | -11 -10 -10 -10 -9 -8 -8 -7 -7 -6 -------- Run | Scr Mat Min Exi Min Mat Sto Fac Low Zio Total Allies 6 | . 1 . . 2 . 1 . . 2 Largest Group 3 | . 1 1 1 3 3 3 2 1 3 Highest-Rated Group 186 | . 60 60 60 115 127 186 186 94 144 Highest-Rated Ally 99 | . 60 60 60 60 72 99 99 94 96 Total Orders . | . . . . . . . . . . Ally Attacks 135 | . 16 6 . . 21 13 29 . 50 Total Damage 8343 | . 282 91 . . 342 1007 2653 . 3968 Kills 69 | . 4 1 . . 5 9 19 . 31 Allies Corrupted . | . . . . . . . . . . Allies Melted . | . . . . . . . . . . Intel | -11 -10 -10 -10 -9 -8 -8 -7 -7 -6 ------- Run | Scr Mat Min Exi Min Mat Sto Fac Low Zio Robot Analysis Total . | . . . . . . . . . . Derelict Logs Recovered 3 | . . 1 . . . . . 1 1 Drone Launches . | . . . . . . . . . . Drone Recoveries . | . . . . . . . . . . Exploration | -11 -10 -10 -10 -9 -8 -8 -7 -7 -6 ------------- Run | Scr Mat Min Exi Min Mat Sto Fac Low Zio Turns Passed 9790 | . 839 403 1294 168 341 2433 989 929 2394 Spaces Moved 3907 | 1 239 229 837 79 103 584 339 545 951 Core . | . . . . . . . . . . Treads 2520 | . . . . . 101 584 339 545 951 Legs 1387 | 1 239 229 837 79 2 . . . . Wheels . | . . . . . . . . . . Hover . | . . . . . . . . . . Flight . | . . . . . . . . . . Fastest Speed 120 | 120 120 150 150 150 150 160 150 150 150 Average Speed 158 | 120 121 150 150 150 159 160 166 165 169 Slowest Speed 185 | 120 150 150 150 150 160 160 185 170 170 Overloaded Moves . | . . . . . . . . . . Propulsion Burnouts . | . . . . . . . . . . Robots Hopped . | . . . . . . . . . . Cave-ins Triggered . | . . . . . . . . . . Exploration Rate (%) 45 | 2 47 46 93 18 15 67 10 67 88 Regions Visited 9 Branch Regions 6 Pre-discovered Areas 1 | . . . 1 . . . . . . Known Exits Taken 8 | 1 1 1 1 1 1 1 1 . . Unknown Exits Taken 1 | . . . . . . . . 1 . Scrap Searched 1 | . . . . . . . . . 1 Spaces Dug . | . . . . . . . . . . Terrain Destroyed 292 | . . 2 . . . 215 67 . 8 Melee . | . . . . . . . . . . Projectile . | . . . . . . . . . . AOE 292 | . . 2 . . . 215 67 . 8 Terrain Rammed . | . . . . . . . . . . Walls Destroyed . | . . . . . . . . . . Machines Disabled . | . . . . . . . . . . Actions | -11 -10 -10 -10 -9 -8 -8 -7 -7 -6 --------- Run | Scr Mat Min Exi Min Mat Sto Fac Low Zio Total 7370 | . 760 276 876 129 249 2047 750 571 1712 Wait 3351 | . 503 42 40 51 120 1436 384 24 751 Move 3898 | . 238 228 836 78 102 583 338 544 951 Hop . | . . . . . . . . . . Pick Up 10 | . 2 . . . 3 1 3 1 . Fast Attach 12 | . . . . . 2 5 5 . . Attach 12 | . 1 . . . 4 1 3 1 2 Detach 8 | . . . . . 2 1 5 . . Swap 1 | . 1 . . . . . . . . Drop 13 | . 1 . . . 2 5 4 1 . Fire 63 | . 14 6 . . 14 15 6 . 8 Melee . | . . . . . . . . . . Ram . | . . . . . . . . . . Kick . | . . . . . . . . . . Crush . | . . . . . . . . . . Escape Stasis 2 | . . . . . . . 2 . . Rewire . | . . . . . . . . . . Trap . | . . . . . . . . . . Miscellaneous . | . . . . . . . . . . Route ------- -11/Scrapyard -10/Materials -10/Mines (discovered 2 exits: Mat / *Exi) -10/Exiles (discovered 2 exits: *Min x2) -9/Mines -8/Materials -8/Storage -7/Factory -7/Lower Caves -6/Zion History --------- Turn | Location | Event 1 | -11/Scrapyard | Identified exit to Materials 1 | -11/Scrapyard | Discovered exit to Materials (range 0) 1 | -11/Scrapyard | Entered Materials 1 | -10/Materials | Evolved 1 slot: Weapon x1 323 | -10/Materials | Build established: Hacker-Tank 813 | -10/Materials | Identified exit to Mines 813 | -10/Materials | Discovered exit to Mines (range 8) 840 | -10/Materials | Entered Mines 840 | -10/Mines | Accompanied by 1 ally 1091 | -10/Mines | Identified exit to Materials 1235 | -10/Mines | Deemed a non-threat by the Exiles lab entrance 1235 | -10/Mines | Identified exit to Exiles 1235 | -10/Mines | Discovered exit to Exiles (range 5) 1243 | -10/Mines | Entered Exiles 1243 | -10/Exiles | Accompanied by 1 ally 1273 | -10/Exiles | Identified exit to Mines 1273 | -10/Exiles | Discovered exit to Mines (range 14) 1298 | -10/Exiles | Met 8R-AWN 1336 | -10/Exiles | Met EX-HEX 1481 | -10/Exiles | Met EX-DEC 1550 | -10/Exiles | Visited The Gauntlet 1957 | -10/Exiles | Discovered exit to Mines (range 14) 2053 | -10/Exiles | Learned location of Zion (-6) 2080 | -10/Exiles | Met EX-BIN 2110 | -10/Exiles | Aligned with FarCom system 2111 | -10/Exiles | Given EX-Vault access code 2537 | -10/Exiles | Entered Mines 2537 | -9/Mines | Accompanied by 1 ally 2576 | -9/Mines | Identified exit to Materials 2576 | -9/Mines | Discovered exit to Materials (range 5) 2588 | -9/Mines | Met a Derelict bent on vengeance 2705 | -9/Mines | Entered Materials 2705 | -8/Materials | Accompanied by 3 allies 2705 | -8/Materials | Evolved 4 slots: Propulsion x1, Utility x2, Weapon x1 2710 | -8/Materials | Led the pair of lost Derelicts to an unsafe place 3002 | -8/Materials | Identified exit to Storage 3002 | -8/Materials | Discovered exit to Storage (range 4) 3046 | -8/Materials | Entered Storage 3046 | -8/Storage | Accompanied by 3 allies 5422 | -8/Storage | Identified exit to Factory 5422 | -8/Storage | Discovered exit to Factory (range 16) 5439 | -8/Storage | Met 01-MTF 5479 | -8/Storage | Entered Factory 5479 | -7/Factory | Accompanied by 2 allies (01-MTF) 5479 | -7/Factory | Evolved 2 slots: Utility x1, Weapon x1 5484 | -7/Factory | 01-MTF left 5680 | -7/Factory | Local fabrication network quarantined 5787 | -7/Factory | Build established: Hacker-Skirmisher 6099 | -7/Factory | Garrison activated, responded to threat 6318 | -7/Factory | Build established: Hacker-Tank 6383 | -7/Factory | Identified exit to Lower Caves 6383 | -7/Factory | Discovered exit to Lower Caves (range 13) 6468 | -7/Factory | Entered Lower Caves 6468 | -7/Lower Caves | Accompanied by 1 ally 7319 | -7/Lower Caves | Learned 4 Factory zone layouts 7391 | -7/Lower Caves | A Derelict revealed a hidden shortcut to a safe place 7397 | -7/Lower Caves | Entered Zion 7397 | -6/Zion | Accompanied by 1 ally 7493 | -6/Zion | System corruption cleaned by Quarantine Array 7920 | -6/Zion | Learned 8 Factory zone layouts 8152 | -6/Zion | Gained Derelict followers 8473 | -6/Zion | Received a visual enhancement algorithm 9190 | -6/Zion | Rebuked by Imprinter 9483 | -6/Zion | Attempted to imprint without authorization 9483 | -6/Zion | Attacked by Zionites 9691 | -6/Zion | Core integrity fell below 50% 9774 | -6/Zion | Core integrity fell below 20% 9791 | -6/Zion | Core destroyed Last Messages --------------- targets." Flak Cannon severed. The unstable cave ceiling collapses. Critical hit. PQ-S4O(z) destroyed. IA-4DR(c) destroyed. GE-BXL(z) pulls a Mak. Sword out of the Twisted Machinery. M7-63Y(z) bursts out of the Twisted Machinery. M7-63Y(z) pulls a Mak. Shrapnel Gun out of the Twisted Machinery. M7-63Y(z) destroyed. GE-BXL(z) destroyed. X7-Y2I(z) destroyed. 9D-CN9(z) heat damages core (-2). 9D-CN9(z) destroyed. The unstable cave ceiling collapses. RU-XYZ(z) bursts out of the Twisted Machinery. RU-XYZ(z) pulls a Mak. Shrapnel Gun out of the Twisted Machinery. Player 2: "Looking forward to owning one 14 Matter here in a moment..." The unstable cave ceiling collapses. Player 2: "Your Sml. Laser looks inferior somehow." Map ----- +----------------------------------------------------+ | "#?###???????????#????######??????????# ###?# | | ####"#???????????#"???"""#"#?????????## # ##" | | X#"#"####????????#"####""""#?#????#### "# | | ##"""#"###??????##""""""""#"#???##"#" "" " | | # " """#"###?####"" "" """##???#"""""#" | | "" ""#""###"#""" """##??#""""""" | | """ """#"""""""" """#??#""" | | "" ""##"""" """""#####"" | | " """" "##"###"" "" | | ""# """ """""#""" """ | | """" """ "" """ """"""""" """" | | "" """""" """" """" | | ""#"" """ """"""""" "" | | ##"" "" """#"###"" | | """ """" " """"##?#""" | | """"" """"" """"#"#?##"" | | """""" " " ""###"##""""""" | | """" "M "#""##"""""""" | | ##" ""z """""""""""""" | | """ "" "" @ " | | "" """"""""" | | """""""" % | | """" | | " % | | "" % =# " | | "" "" = @ """"""""""""""" | | """"" "" " ""###"""#""##""""""" | | """" ## #####"##"#"####"#""""" | | ##""" ####??###???########??#####""" | | ##" " ##?????????????????????????##"" | | # # ""##??????????????????????????### | | # ""#????????????????????????????# | | ""#????????????????????????????# | | "##???????????????????????????## | | """#???????????????????????????#" | | ""##???????????????????????????## | | = " ""#???????????????????????????##" | | [ ""#"#????????????????????#???###"# | | """"????????????????????#]?## """ | | """""#?????????????????## " """ | | """" ""#????????????????#] " | | """ ""#"???????????????????" | | [ """ ""##??????????????????# | | "" ""#??????????????????## | | "##???????????????????# | | ""#???????????????????### | | * ""#"?????????????????????# | | =[ """##??????????????????????## | | ""#"#???????????????????????#"# | | "###????????????????????????### | +----------------------------------------------------+ Best States ------------- Heat Dissipation 34 Energy Generation 14 Energy Capacity 250 Matter Stores 300 Matter Capacity 300 Sight Range 16 Terrain Scan Density 10 Armor Coverage 825 Resistance: KI 35 Resistance: TH 35 Resistance: EX 35 Resistance: EM 35 Resistance: I 35 Resistance: S 35 Resistance: P 35 Weapon Shielding 33 Evasion (%) 40 Targeting Accuracy 5 Recoil Reduction 3 Offensive Hacking 20 Item Schematics ----------------- Riot Gun | -6/Zion | Free Flamer | -6/Zion | Free Plasma Flamer | -6/Zion | Free Robot Schematics ------------------ None Fabricated ------------ Nothing Alien Tech Used ----------------- None Achievements -------------- None Challenges ------------ None Player 2 | -11 -10 -10 -10 -9 -8 -8 -7 -7 -6 ---------- Run | Scr Mat Min Exi Min Mat Sto Fac Low Zio Slots Evolved 6 | . . . . 4 . 2 . . . Power . | . . . . . . . . . . Propulsion 3 | . . . . 2 . 1 . . . Utility 2 | . . . . 1 . 1 . . . Weapon 1 | . . . . 1 . . . . . Parts Attached 59 | . 12 . . . 10 16 6 1 14 Parts Lost 22 | . . . . . . 1 3 . 18 Damage Taken 3340 | . 77 52 . . 8 392 619 . 2192 Core 726 | . . 12 . . . 57 24 . 633 Player 2/Cogmind (%) 85 | . . 52 . . . 54 77 . 94 Absorbed by Shields 420 | . . . . . . . 420 . . Damage Inflicted 8197 | . 282 91 . . 196 1007 2653 . 3968 Player 2/Cogmind (%) 66 | . 41 32 . . 30 36 77 . 87 Combat Hostiles Destroyed 35 | . 2 1 . . 3 8 14 . 7 Player 2/Cogmind (%) 59 | . 25 50 . . 42 50 82 . 77 Game ------ Seed SlugRecyclingUnit Manual? 0 Play Time 01:02:45 Cumulative 96.4 hours Start 2022.03.04 @ 16:28:12 End 2022.03.04 @ 17:39:32 Sessions 1 Manual Loads 0 Difficulty Explorer Special Mode AFD2020/Player2 Game No. 156 Rogue 89 Adventurer 0 Explorer 67 Win Type - Total 0 Types 0/0/0/0/0/0/0/0/0 Lore% 32 Gallery% 32 Achievement% 21 Wizard Run 0 Options --------- ASCII 0 Keyboard 0 Movement Mouse Keybinds 0 Fullscreen 1 Font 16/Dina Map View 76x50 Tactical HUD 0 Map Filters NONE Filters NONE Steam 1 RUN: 74966123-a3ed-4cd4-ad3c-c14a1ed57c25